[Event "Early-Titled-Tuesday-Blitz-October-17-2023"]
[Site "Chess.com"]
[Date "2023.10.17"]
[Round "6"]
[White "DonCiao"]
[Black "CuattroPrincesses"]
[Result "0-1"]
[WhiteElo "2093"]
[BlackElo "2276"]
[TimeControl "180+1"]
[EndTime "9:11:13 PDT"]
[Termination "CuattroPrincesses won by resignation"]

1. c4 {[%clk 0:03:00.9]} 1... Nf6 {[%clk 0:02:49]} 2. g3 {[%clk 0:03:00.7]} 2...
g6 {[%clk 0:02:47.3]} 3. Bg2 {[%clk 0:03:00.4]} 3... Bg7 {[%clk 0:02:47.3]} 4.
Nc3 {[%clk 0:03:00.4]} 4... O-O {[%clk 0:02:47.2]} 5. e4 {[%clk 0:03:00.3]} 5...
d6 {[%clk 0:02:46.9]} 6. Nge2 {[%clk 0:03:00.3]} 6... c5 {[%clk 0:02:45.3]} 7.
O-O {[%clk 0:03:00.1]} 7... Nc6 {[%clk 0:02:44.4]} 8. d3 {[%clk 0:03:00]} 8...
e5 {[%clk 0:02:43.7]} 9. h3 {[%clk 0:02:59]} 9... a6 {[%clk 0:02:38.4]} 10. Be3
{[%clk 0:02:58.4]} 10... Rb8 {[%clk 0:02:37.9]} 11. a4 {[%clk 0:02:57.4]} 11...
Bd7 {[%clk 0:02:22.7]} 12. f4 {[%clk 0:02:56.9]} 12... exf4 {[%clk 0:02:21.7]}
13. gxf4 {[%clk 0:02:56.1]} 13... Nh5 {[%clk 0:02:19.4]} 14. f5 {[%clk 0:02:36]}
14... Nd4 {[%clk 0:02:13.6]} 15. Nd5 {[%clk 0:02:27.4]} 15... Bc6 {[%clk
0:02:06.2]} 16. Bxd4 {[%clk 0:02:05.8]} 16... cxd4 {[%clk 0:01:57.3]} 17. b4
{[%clk 0:01:53]} 17... Bxd5 {[%clk 0:01:50.9]} 18. cxd5 {[%clk 0:01:51.3]} 18...
Be5 {[%clk 0:01:47.9]} 19. Qd2 {[%clk 0:01:47.7]} 19... Qh4 {[%clk 0:01:44.3]}
20. Rf3 {[%clk 0:01:37.2]} 20... Rbc8 {[%clk 0:01:39.3]} 21. Raf1 {[%clk
0:01:35.4]} 21... Rc7 {[%clk 0:01:36.5]} 22. fxg6 {[%clk 0:01:31.1]} 22... hxg6
{[%clk 0:01:34.1]} 23. Qh6 {[%clk 0:01:23.2]} 23... Bg7 {[%clk 0:00:41.4]} 24.
Qd2 {[%clk 0:01:17.3]} 24... Rfc8 {[%clk 0:00:40.6]} 25. Qe1 {[%clk 0:00:57.3]}
25... Qg5 {[%clk 0:00:32.8]} 26. Qf2 {[%clk 0:00:57]} 26... Rc2 {[%clk
0:00:19.5]} 27. Rxf7 {[%clk 0:00:51.7]} 27... Qe3 {[%clk 0:00:16.5]} 28. Qxe3
{[%clk 0:00:46]} 28... dxe3 {[%clk 0:00:17.4]} 29. Re1 {[%clk 0:00:42.7]} 29...
Kxf7 {[%clk 0:00:16.5]} 30. Bf3 {[%clk 0:00:34.1]} 30... Rd2 {[%clk 0:00:11.4]}
31. d4 {[%clk 0:00:33.4]} 31... Rcc2 {[%clk 0:00:10.7]} 32. Bxh5 {[%clk
0:00:28.3]} 32... gxh5 {[%clk 0:00:10.6]} 33. Nf4 {[%clk 0:00:28.9]} 33... Bxd4
{[%clk 0:00:09]} 34. Nxh5 {[%clk 0:00:27.5]} 34... e2+ {[%clk 0:00:07.7]} 35.
Kg2 {[%clk 0:00:27.6]} 35... Rd1 {[%clk 0:00:07.4]} 36. Rxe2 {[%clk 0:00:27.8]}
36... Rxe2+ {[%clk 0:00:07.3]} 37. Kf3 {[%clk 0:00:27.6]} 37... Re3+ {[%clk
0:00:07.8]} 38. Kg4 {[%clk 0:00:27.7]} 38... Rxe4+ {[%clk 0:00:08.3]} 39. Kf5
{[%clk 0:00:27.1]} 39... Re5+ {[%clk 0:00:08.7]} 40. Kg4 {[%clk 0:00:27.3]}
40... Rxh5 {[%clk 0:00:09.4]} 41. Kxh5 {[%clk 0:00:27.1]} 41... Be5 {[%clk
0:00:09.9]} 42. Kg4 {[%clk 0:00:27]} 42... Rd4+ {[%clk 0:00:10.5]} 43. Kf3
{[%clk 0:00:27]} 43... Rxd5 {[%clk 0:00:11.1]} 44. Ke4 {[%clk 0:00:26.9]} 44...
Rd4+ {[%clk 0:00:11.6]} 45. Ke3 {[%clk 0:00:26.8]} 45... Rxb4 {[%clk 0:00:12.5]}
46. Kd3 {[%clk 0:00:26.1]} 46... Rxa4 {[%clk 0:00:13.4]} 47. Ke3 {[%clk
0:00:26.5]} 47... Ra3+ {[%clk 0:00:12.5]} 48. Ke4 {[%clk 0:00:26.5]} 48... Rxh3
{[%clk 0:00:13.4]} 49. Kd5 {[%clk 0:00:26.7]} 49... a5 {[%clk 0:00:12.6]} 50.
Kc4 {[%clk 0:00:26.2]} 50... a4 {[%clk 0:00:12.1]} 51. Kd5 {[%clk 0:00:25.3]}
51... a3 {[%clk 0:00:12.4]} 0-1

[Event "Early-Titled-Tuesday-Blitz-October-17-2023"]
[Site "Chess.com"]
[Date "2023.10.17"]
[Round "6"]
[White "SlavenPastar"]
[Black "dosto07"]
[Result "0-1"]
[WhiteElo "2646"]
[BlackElo "2550"]
[TimeControl "180+1"]
[EndTime "9:11:14 PDT"]
[Termination "dosto07 won on time"]

1. b3 {[%clk 0:03:00.9]} 1... d5 {[%clk 0:02:58.3]} 2. Bb2 {[%clk 0:03:01.4]}
2... Nf6 {[%clk 0:02:58.1]} 3. Nf3 {[%clk 0:03:02]} 3... Bg4 {[%clk 0:02:58.2]}
4. e3 {[%clk 0:03:02.2]} 4... Nbd7 {[%clk 0:02:58.4]} 5. h3 {[%clk 0:03:00]}
5... Bxf3 {[%clk 0:02:53.8]} 6. Qxf3 {[%clk 0:03:00.9]} 6... e6 {[%clk
0:02:54.1]} 7. c4 {[%clk 0:02:59.6]} 7... c6 {[%clk 0:02:53.3]} 8. Nc3 {[%clk
0:03:00.1]} 8... Bd6 {[%clk 0:02:53]} 9. g4 {[%clk 0:02:58.1]} 9... h6 {[%clk
0:02:52]} 10. h4 {[%clk 0:02:51.6]} 10... Qe7 {[%clk 0:02:50]} 11. g5 {[%clk
0:02:43.7]} 11... hxg5 {[%clk 0:02:40.1]} 12. hxg5 {[%clk 0:02:44.6]} 12... Rxh1
{[%clk 0:02:39.5]} 13. Qxh1 {[%clk 0:02:45.5]} 13... Ng8 {[%clk 0:02:39.5]} 14.
Qh7 {[%clk 0:02:33.1]} 14... O-O-O {[%clk 0:02:30.1]} 15. Qxg7 {[%clk
0:02:15.6]} 15... Be5 {[%clk 0:02:26.2]} 16. Qh7 {[%clk 0:02:13.8]} 16... d4
{[%clk 0:02:00.3]} 17. exd4 {[%clk 0:02:07.8]} 17... Bxd4 {[%clk 0:02:00.3]} 18.
f4 {[%clk 0:02:03.5]} 18... e5 {[%clk 0:01:54]} 19. O-O-O {[%clk 0:01:53.5]}
19... exf4 {[%clk 0:01:49.1]} 20. Qf5 {[%clk 0:01:52.2]} 20... Qe5 {[%clk
0:01:39.2]} 21. Bh3 {[%clk 0:01:49.8]} 21... Qxf5 {[%clk 0:01:31.1]} 22. Bxf5
{[%clk 0:01:49.6]} 22... Ne7 {[%clk 0:01:31.2]} 23. Bc2 {[%clk 0:01:32.2]} 23...
Ne5 {[%clk 0:01:08.7]} 24. Rf1 {[%clk 0:01:16.5]} 24... f3 {[%clk 0:00:59]} 25.
Ne4 {[%clk 0:01:08.3]} 25... Bxb2+ {[%clk 0:00:56.2]} 26. Kxb2 {[%clk
0:01:09.2]} 26... Nf5 {[%clk 0:00:43.8]} 27. c5 {[%clk 0:00:49.3]} 27... Nd4
{[%clk 0:00:41.6]} 28. Nd6+ {[%clk 0:00:43.2]} 28... Kc7 {[%clk 0:00:39.2]} 29.
Bd1 {[%clk 0:00:31.1]} 29... b6 {[%clk 0:00:37.8]} 30. b4 {[%clk 0:00:20.3]}
30... bxc5 {[%clk 0:00:35.9]} 31. bxc5 {[%clk 0:00:21.2]} 31... Ne6 {[%clk
0:00:16]} 32. Ne4 {[%clk 0:00:10.6]} 32... Rd4 {[%clk 0:00:14]} 33. Bc2 {[%clk
0:00:07.6]} 33... Nf4 {[%clk 0:00:09.9]} 34. Kc3 {[%clk 0:00:04.2]} 34... Rd8
{[%clk 0:00:09.1]} 35. g6 {[%clk 0:00:02.3]} 35... fxg6 {[%clk 0:00:08.5]} 36.
Ng5 {[%clk 0:00:02.5]} 36... Rh8 {[%clk 0:00:06.1]} 37. Nxf3 {[%clk 0:00:01.8]}
37... Rh3 {[%clk 0:00:06.1]} 38. Be4 {[%clk 0:00:01.2]} 38... Ne6 {[%clk
0:00:05.3]} 0-1

[Event "Early-Titled-Tuesday-Blitz-October-17-2023"]
[Site "Chess.com"]
[Date "2023.10.17"]
[Round "6"]
[White "maurovargas01"]
[Black "Nekoo04"]
[Result "1-0"]
[WhiteElo "1928"]
[BlackElo "2247"]
[TimeControl "180+1"]
[EndTime "9:11:14 PDT"]
[Termination "maurovargas01 won by resignation"]

1. e4 {[%clk 0:03:00.9]} 1... c5 {[%clk 0:02:51.7]} 2. Nc3 {[%clk 0:02:59.5]}
2... Nc6 {[%clk 0:02:51.1]} 3. f4 {[%clk 0:03:00.4]} 3... g6 {[%clk 0:02:45.8]}
4. Nf3 {[%clk 0:03:01.3]} 4... Bg7 {[%clk 0:02:46.1]} 5. Nd5 {[%clk 0:02:57.6]}
5... e6 {[%clk 0:02:42.8]} 6. Ne3 {[%clk 0:02:57.6]} 6... d5 {[%clk 0:02:34.3]}
7. e5 {[%clk 0:02:56.2]} 7... f6 {[%clk 0:02:32.9]} 8. exf6 {[%clk 0:02:53.9]}
8... Nxf6 {[%clk 0:02:33.8]} 9. d3 {[%clk 0:02:52.8]} 9... O-O {[%clk
0:02:32.9]} 10. g3 {[%clk 0:02:45.9]} 10... Qd6 {[%clk 0:01:49.5]} 11. c3 {[%clk
0:02:45]} 11... e5 {[%clk 0:01:48]} 12. fxe5 {[%clk 0:02:34.5]} 12... Nxe5
{[%clk 0:01:48.9]} 13. Bg2 {[%clk 0:02:25.6]} 13... d4 {[%clk 0:01:28.8]} 14.
Nc4 {[%clk 0:02:24.1]} 14... Nxc4 {[%clk 0:01:26.1]} 15. dxc4 {[%clk 0:02:24.1]}
15... Re8+ {[%clk 0:01:13.8]} 16. Kf1 {[%clk 0:02:17.3]} 16... Be6 {[%clk
0:01:06.9]} 17. b3 {[%clk 0:02:10.2]} 17... Bg4 {[%clk 0:00:35]} 18. Bf4 {[%clk
0:01:57.6]} 18... Qd7 {[%clk 0:00:31.9]} 19. cxd4 {[%clk 0:01:53.1]} 19... cxd4
{[%clk 0:00:31.8]} 20. Qxd4 {[%clk 0:01:43.5]} 20... Bxf3 {[%clk 0:00:31.6]} 21.
Qxd7 {[%clk 0:01:43]} 21... Bxg2+ {[%clk 0:00:31.6]} 22. Kxg2 {[%clk 0:01:38]}
22... Nxd7 {[%clk 0:00:32.5]} 23. Rad1 {[%clk 0:01:27]} 23... Ne5 {[%clk
0:00:32.3]} 24. Rd5 {[%clk 0:01:20.6]} 24... Rad8 {[%clk 0:00:27.7]} 25. Rhd1
{[%clk 0:01:18]} 25... Nc6 {[%clk 0:00:22.7]} 26. Rd7 {[%clk 0:01:10.3]} 26...
Rxd7 {[%clk 0:00:10.7]} 27. Rxd7 {[%clk 0:01:09.6]} 27... Re7 {[%clk 0:00:11.6]}
28. Rd5 {[%clk 0:01:07]} 28... Re2+ {[%clk 0:00:11.4]} 29. Kf3 {[%clk
0:01:04.4]} 29... Rxa2 {[%clk 0:00:10.4]} 30. h4 {[%clk 0:01:03.5]} 30... Nd4+
{[%clk 0:00:08.5]} 31. Kg4 {[%clk 0:00:59.3]} 31... h5+ {[%clk 0:00:04.1]} 32.
Kh3 {[%clk 0:00:58.2]} 32... Nf3 {[%clk 0:00:03.7]} 33. Rd8+ {[%clk 0:00:55.6]}
33... Kf7 {[%clk 0:00:02.4]} 34. g4 {[%clk 0:00:55.2]} 34... Ng1+ {[%clk
0:00:02]} 35. Kg3 {[%clk 0:00:53.8]} 35... hxg4 {[%clk 0:00:02.4]} 36. Kxg4
{[%clk 0:00:51.6]} 36... Ne2 {[%clk 0:00:02.1]} 37. Rd7+ {[%clk 0:00:50]} 37...
Kf6 {[%clk 0:00:01.8]} 38. Bg5+ {[%clk 0:00:49.4]} 38... Ke6 {[%clk 0:00:02.2]}
39. Rxg7 {[%clk 0:00:49.6]} 39... Rb2 {[%clk 0:00:02.4]} 40. Rxg6+ {[%clk
0:00:49.6]} 40... Kf7 {[%clk 0:00:02.9]} 41. Rf6+ {[%clk 0:00:48.8]} 41... Kg7
{[%clk 0:00:03.1]} 42. Re6 {[%clk 0:00:44.8]} 42... Kf7 {[%clk 0:00:02.7]} 43.
Re5 {[%clk 0:00:43.1]} 43... Nd4 {[%clk 0:00:02.2]} 44. Re7+ {[%clk 0:00:42.3]}
44... Kg8 {[%clk 0:00:01.7]} 45. Rd7 {[%clk 0:00:42.3]} 45... Rxb3 {[%clk
0:00:02]} 46. Rxd4 {[%clk 0:00:42.2]} 46... a5 {[%clk 0:00:02.6]} 47. Kh5 {[%clk
0:00:42.1]} 47... a4 {[%clk 0:00:02.8]} 48. Kg6 {[%clk 0:00:42.4]} 48... Rb6+
{[%clk 0:00:03]} 49. Bf6 {[%clk 0:00:41.1]} 1-0

[Event "Early-Titled-Tuesday-Blitz-October-17-2023"]
[Site "Chess.com"]
[Date "2023.10.17"]
[Round "6"]
[White "Jospem"]
[Black "js20000"]
[Result "1-0"]
[WhiteElo "3116"]
[BlackElo "2887"]
[TimeControl "180+1"]
[EndTime "9:11:15 PDT"]
[Termination "Jospem won by resignation"]

1. e4 {[%clk 0:03:00.9]} 1... c6 {[%clk 0:02:58.6]} 2. d4 {[%clk 0:03:01.3]}
2... d5 {[%clk 0:02:59.5]} 3. e5 {[%clk 0:03:02.1]} 3... Bf5 {[%clk 0:02:59]} 4.
h4 {[%clk 0:03:02.9]} 4... h6 {[%clk 0:02:59.2]} 5. g4 {[%clk 0:03:00.7]} 5...
Be4 {[%clk 0:02:59.4]} 6. f3 {[%clk 0:03:01.1]} 6... Bh7 {[%clk 0:02:59.7]} 7.
Bd3 {[%clk 0:03:01.9]} 7... Bxd3 {[%clk 0:02:59.1]} 8. Qxd3 {[%clk 0:03:02.8]}
8... e6 {[%clk 0:02:59.7]} 9. h5 {[%clk 0:03:02.6]} 9... c5 {[%clk 0:02:57.7]}
10. c3 {[%clk 0:03:03]} 10... Nc6 {[%clk 0:02:56.7]} 11. Be3 {[%clk 0:03:03.6]}
11... Qb6 {[%clk 0:02:55.3]} 12. Nd2 {[%clk 0:03:00.1]} 12... Qxb2 {[%clk
0:02:51.5]} 13. Rb1 {[%clk 0:02:59.5]} 13... Qxa2 {[%clk 0:02:51.4]} 14. dxc5
{[%clk 0:02:43.8]} 14... Qa6 {[%clk 0:02:42.7]} 15. Qxa6 {[%clk 0:02:38.9]}
15... bxa6 {[%clk 0:02:43.6]} 16. f4 {[%clk 0:02:39.6]} 16... Nge7 {[%clk
0:02:26.7]} 17. Ngf3 {[%clk 0:02:38.9]} 17... f5 {[%clk 0:02:26]} 18. g5 {[%clk
0:02:33.8]} 18... d4 {[%clk 0:02:05]} 19. cxd4 {[%clk 0:02:27.8]} 19... Nd5
{[%clk 0:02:04.2]} 20. Kf2 {[%clk 0:02:26]} 20... hxg5 {[%clk 0:01:45.8]} 21.
Nxg5 {[%clk 0:02:24.1]} 21... Be7 {[%clk 0:01:36.6]} 22. Nc4 {[%clk 0:01:31.8]}
22... Bxg5 {[%clk 0:01:21.5]} 23. fxg5 {[%clk 0:01:32.7]} 23... O-O {[%clk
0:01:18.3]} 24. Kf3 {[%clk 0:01:13.8]} 24... f4 {[%clk 0:01:17.4]} 25. Bf2
{[%clk 0:01:13.6]} 25... Rab8 {[%clk 0:01:13.5]} 26. Rhc1 {[%clk 0:01:05.4]}
26... Rxb1 {[%clk 0:01:11.8]} 27. Rxb1 {[%clk 0:01:04.9]} 27... Rb8 {[%clk
0:01:12.7]} 28. Rxb8+ {[%clk 0:01:00.6]} 28... Nxb8 {[%clk 0:01:13.6]} 29. Na5
{[%clk 0:01:01.3]} 29... Nb4 {[%clk 0:01:06.1]} 30. Kxf4 {[%clk 0:00:50.3]}
30... N8c6 {[%clk 0:01:05.3]} 31. Nc4 {[%clk 0:00:51]} 31... Nd3+ {[%clk
0:01:03]} 32. Ke3 {[%clk 0:00:50]} 32... Nxf2 {[%clk 0:01:02.9]} 33. Kxf2 {[%clk
0:00:50.9]} 33... Nxd4 {[%clk 0:01:03.5]} 34. Na5 {[%clk 0:00:47.9]} 34... Kf7
{[%clk 0:00:58.6]} 35. c6 {[%clk 0:00:46.8]} 35... Nb5 {[%clk 0:00:54.3]} 36.
Nc4 {[%clk 0:00:46.8]} 36... Ke7 {[%clk 0:00:45]} 37. Ke3 {[%clk 0:00:36.2]}
37... Nc7 {[%clk 0:00:44.9]} 38. Kd4 {[%clk 0:00:34.5]} 38... Nd5 {[%clk
0:00:43.2]} 39. Nd6 {[%clk 0:00:25.2]} 39... Kd8 {[%clk 0:00:33.9]} 40. h6
{[%clk 0:00:21.8]} 40... gxh6 {[%clk 0:00:29.4]} 41. gxh6 {[%clk 0:00:22.7]}
41... Ne7 {[%clk 0:00:26.3]} 42. h7 {[%clk 0:00:19.2]} 42... Ng6 {[%clk
0:00:26.2]} 43. Kc5 {[%clk 0:00:18.9]} 43... a5 {[%clk 0:00:20.9]} 44. Nb7+
{[%clk 0:00:17.8]} 44... Kc7 {[%clk 0:00:20.4]} 45. Nxa5 {[%clk 0:00:18.3]}
45... Nh8 {[%clk 0:00:19.2]} 46. Nc4 {[%clk 0:00:18.6]} 46... a6 {[%clk
0:00:18]} 47. Nd6 {[%clk 0:00:17.7]} 47... a5 {[%clk 0:00:16.6]} 48. Nb5+ {[%clk
0:00:18]} 48... Kc8 {[%clk 0:00:17.1]} 49. Kb6 {[%clk 0:00:18.4]} 49... a4
{[%clk 0:00:15.2]} 50. Nd6+ {[%clk 0:00:18.8]} 50... Kd8 {[%clk 0:00:15.6]} 51.
c7+ {[%clk 0:00:19.6]} 1-0

[Event "Early-Titled-Tuesday-Blitz-October-17-2023"]
[Site "Chess.com"]
[Date "2023.10.17"]
[Round "6"]
[White "chess_blitz00"]
[Black "The_Machine04"]
[Result "0-1"]
[WhiteElo "2559"]
[BlackElo "2693"]
[TimeControl "180+1"]
[EndTime "9:11:16 PDT"]
[Termination "The_Machine04 won by checkmate"]

1. d4 {[%clk 0:03:00.9]} 1... d6 {[%clk 0:02:59.8]} 2. Nf3 {[%clk 0:03:01.6]}
2... Nf6 {[%clk 0:02:59.5]} 3. Nc3 {[%clk 0:03:00.3]} 3... Nbd7 {[%clk
0:02:59.4]} 4. e4 {[%clk 0:03:00.5]} 4... e5 {[%clk 0:02:59.9]} 5. Bc4 {[%clk
0:02:58.3]} 5... Be7 {[%clk 0:03:00]} 6. O-O {[%clk 0:02:55.5]} 6... c6 {[%clk
0:02:59.8]} 7. a4 {[%clk 0:02:52.3]} 7... Qc7 {[%clk 0:02:59.4]} 8. h3 {[%clk
0:02:48.3]} 8... h6 {[%clk 0:02:59.2]} 9. b3 {[%clk 0:02:43.5]} 9... Nf8 {[%clk
0:02:58.9]} 10. Bb2 {[%clk 0:02:43.1]} 10... Ng6 {[%clk 0:02:58.9]} 11. Re1
{[%clk 0:02:38.4]} 11... O-O {[%clk 0:02:58.6]} 12. Bd3 {[%clk 0:02:21.2]} 12...
b6 {[%clk 0:02:56]} 13. Ne2 {[%clk 0:02:14.4]} 13... Re8 {[%clk 0:02:50.6]} 14.
Ng3 {[%clk 0:02:13.8]} 14... Bf8 {[%clk 0:02:50.8]} 15. c4 {[%clk 0:02:13]}
15... a5 {[%clk 0:02:49.9]} 16. Qc2 {[%clk 0:02:04.4]} 16... Be6 {[%clk
0:02:40.8]} 17. d5 {[%clk 0:02:01.8]} 17... Bd7 {[%clk 0:02:37.3]} 18. dxc6
{[%clk 0:02:02.3]} 18... Bxc6 {[%clk 0:02:38.2]} 19. Rad1 {[%clk 0:01:58.7]}
19... Nd7 {[%clk 0:02:38.2]} 20. Nf5 {[%clk 0:01:36.2]} 20... Nc5 {[%clk
0:02:38.1]} 21. Bc1 {[%clk 0:01:26.7]} 21... Ne7 {[%clk 0:02:34.2]} 22. Ne3
{[%clk 0:01:15.8]} 22... Rac8 {[%clk 0:02:25.6]} 23. Qb1 {[%clk 0:01:06.9]}
23... Qb7 {[%clk 0:02:23.4]} 24. Nd5 {[%clk 0:01:04.8]} 24... Nxd5 {[%clk
0:02:23.4]} 25. exd5 {[%clk 0:01:01.9]} 25... Bd7 {[%clk 0:02:23.5]} 26. Bc2
{[%clk 0:00:40]} 26... Rc7 {[%clk 0:02:21.7]} 27. Nd2 {[%clk 0:00:35.5]} 27...
Qc8 {[%clk 0:02:21.3]} 28. Ne4 {[%clk 0:00:30.8]} 28... f5 {[%clk 0:02:20]} 29.
Nc3 {[%clk 0:00:30.3]} 29... g6 {[%clk 0:02:15.2]} 30. Be3 {[%clk 0:00:26.8]}
30... Bg7 {[%clk 0:02:14.8]} 31. Nb5 {[%clk 0:00:25.1]} 31... Bxb5 {[%clk
0:02:14.9]} 32. Bxc5 {[%clk 0:00:23]} 32... Rxc5 {[%clk 0:02:10.4]} 33. axb5
{[%clk 0:00:21.7]} 33... Rc7 {[%clk 0:02:09.8]} 34. Qa2 {[%clk 0:00:13.3]} 34...
Rce7 {[%clk 0:02:09.5]} 35. Bd3 {[%clk 0:00:11.1]} 35... e4 {[%clk 0:02:08.6]}
36. Bf1 {[%clk 0:00:11.4]} 36... Qc5 {[%clk 0:02:07.9]} 37. Re2 {[%clk
0:00:05.4]} 37... f4 {[%clk 0:02:06.1]} 38. Qc2 {[%clk 0:00:03.7]} 38... g5
{[%clk 0:02:05.2]} 39. Rde1 {[%clk 0:00:03.1]} 39... e3 {[%clk 0:01:59.1]} 40.
f3 {[%clk 0:00:02.9]} 40... Rf7 {[%clk 0:01:54.8]} 41. Rd1 {[%clk 0:00:02.2]}
41... Qb4 {[%clk 0:01:52.7]} 42. Rd3 {[%clk 0:00:01.6]} 42... Rc8 {[%clk
0:01:48.8]} 43. Rd1 {[%clk 0:00:01.5]} 43... a4 {[%clk 0:01:46.6]} 44. bxa4
{[%clk 0:00:02]} 44... Rxc4 {[%clk 0:01:45.3]} 45. Qg6 {[%clk 0:00:02.4]} 45...
Qxa4 {[%clk 0:01:43.6]} 46. Rb1 {[%clk 0:00:01.9]} 46... Qc2 {[%clk 0:01:41.6]}
47. Qxc2 {[%clk 0:00:01.1]} 47... Rxc2 {[%clk 0:01:39.7]} 48. Rxc2 {[%clk
0:00:02]} 48... Bd4 {[%clk 0:01:38.4]} 49. Be2 {[%clk 0:00:02.5]} 49... Ra7
{[%clk 0:01:37.2]} 50. Rd1 {[%clk 0:00:03.1]} 50... Bc5 {[%clk 0:01:37.1]} 51.
g3 {[%clk 0:00:03.6]} 51... Kg7 {[%clk 0:01:36.7]} 52. h4 {[%clk 0:00:04]} 52...
Kf6 {[%clk 0:01:36.8]} 53. hxg5+ {[%clk 0:00:03.9]} 53... hxg5 {[%clk
0:01:37.7]} 54. Kg2 {[%clk 0:00:04.3]} 54... Ke5 {[%clk 0:01:34.8]} 55. Rh1
{[%clk 0:00:04.1]} 55... Rg7 {[%clk 0:01:30.5]} 56. Rd1 {[%clk 0:00:01.5]} 56...
Ra7 {[%clk 0:01:29.4]} 57. Rdc1 {[%clk 0:00:01.2]} 57... Kxd5 {[%clk 0:01:28.2]}
58. Rd1+ {[%clk 0:00:01.5]} 58... Ke5 {[%clk 0:01:28.6]} 59. Bc4 {[%clk
0:00:01.9]} 59... Ra4 {[%clk 0:01:25.1]} 60. Rd5+ {[%clk 0:00:02.5]} 60... Kf6
{[%clk 0:01:25.3]} 61. Rd3 {[%clk 0:00:02.7]} 61... Rb4 {[%clk 0:01:23]} 62. Bb3
{[%clk 0:00:02.5]} 62... Rxb5 {[%clk 0:01:22.2]} 63. Rc4 {[%clk 0:00:02.4]}
63... d5 {[%clk 0:01:17.2]} 64. Rc2 {[%clk 0:00:01.6]} 64... d4 {[%clk
0:01:16.3]} 65. Bc4 {[%clk 0:00:02.1]} 65... Rb1 {[%clk 0:01:15.9]} 66. Kh3
{[%clk 0:00:02.1]} 66... Rh1+ {[%clk 0:01:14.7]} 67. Kg4 {[%clk 0:00:02.1]}
67... Rg1 {[%clk 0:01:14.4]} 68. Rb3 {[%clk 0:00:02.1]} 68... Rxg3+ {[%clk
0:01:14.3]} 69. Kh5 {[%clk 0:00:01.6]} 69... Rh3+ {[%clk 0:01:14.4]} 70. Kg4
{[%clk 0:00:02.4]} 70... Rh4# {[%clk 0:01:15.1]} 0-1

[Event "Early-Titled-Tuesday-Blitz-October-17-2023"]
[Site "Chess.com"]
[Date "2023.10.17"]
[Round "6"]
[White "verrbaa"]
[Black "jaskol95"]
[Result "0-1"]
[WhiteElo "2450"]
[BlackElo "2607"]
[TimeControl "180+1"]
[EndTime "9:11:22 PDT"]
[Termination "jaskol95 won on time"]

1. e4 {[%clk 0:02:55.2]} 1... d5 {[%clk 0:02:59.8]} 2. exd5 {[%clk 0:02:53.8]}
2... Nf6 {[%clk 0:03:00.3]} 3. d4 {[%clk 0:02:51.7]} 3... Bg4 {[%clk 0:03:00.5]}
4. Nf3 {[%clk 0:02:50.3]} 4... Qxd5 {[%clk 0:02:56.7]} 5. Be2 {[%clk 0:02:47]}
5... e6 {[%clk 0:02:50.4]} 6. c4 {[%clk 0:02:41.9]} 6... Qf5 {[%clk 0:02:40.8]}
7. h3 {[%clk 0:02:31.5]} 7... Bxf3 {[%clk 0:02:40.8]} 8. Bxf3 {[%clk 0:02:31.5]}
8... c6 {[%clk 0:02:41.2]} 9. O-O {[%clk 0:02:27.1]} 9... Nbd7 {[%clk
0:02:38.3]} 10. Nc3 {[%clk 0:02:25.2]} 10... Be7 {[%clk 0:02:35.3]} 11. Re1
{[%clk 0:02:23.8]} 11... O-O {[%clk 0:02:34.5]} 12. g4 {[%clk 0:01:26.3]} 12...
Qg6 {[%clk 0:02:06.9]} 13. d5 {[%clk 0:01:26.2]} 13... cxd5 {[%clk 0:01:48.8]}
14. cxd5 {[%clk 0:01:27.1]} 14... Nc5 {[%clk 0:01:42.2]} 15. d6 {[%clk
0:01:11.4]} 15... Rfd8 {[%clk 0:01:32.8]} 16. Bf4 {[%clk 0:01:09.9]} 16... Bxd6
{[%clk 0:01:08.1]} 17. Bxd6 {[%clk 0:01:08.5]} 17... Nd3 {[%clk 0:01:06.5]} 18.
Bxb7 {[%clk 0:01:02]} 18... Nxe1 {[%clk 0:00:54]} 19. Bxa8 {[%clk 0:01:01.7]}
19... Nd3 {[%clk 0:00:48]} 20. Qf3 {[%clk 0:00:41.3]} 20... Rxd6 {[%clk
0:00:43.9]} 21. Ne4 {[%clk 0:00:41.3]} 21... Ne5 {[%clk 0:00:20.6]} 22. Nxf6+
{[%clk 0:00:40.4]} 22... gxf6 {[%clk 0:00:20.4]} 23. Qe4 {[%clk 0:00:27.4]}
23... h5 {[%clk 0:00:15.6]} 24. Qxg6+ {[%clk 0:00:23.8]} 24... fxg6 {[%clk
0:00:16.5]} 25. gxh5 {[%clk 0:00:23.8]} 25... gxh5 {[%clk 0:00:17.4]} 26. Rc1
{[%clk 0:00:19.6]} 26... Kf7 {[%clk 0:00:16.7]} 27. Rc7+ {[%clk 0:00:18.8]}
27... Rd7 {[%clk 0:00:17.2]} 28. Rxd7+ {[%clk 0:00:19.1]} 28... Nxd7 {[%clk
0:00:18.1]} 29. Kf1 {[%clk 0:00:16.5]} 29... e5 {[%clk 0:00:16.9]} 30. Ke2
{[%clk 0:00:16.3]} 30... Kg6 {[%clk 0:00:17.2]} 31. b4 {[%clk 0:00:10.3]} 31...
Kg5 {[%clk 0:00:17.5]} 32. Bc6 {[%clk 0:00:09.5]} 32... Nb6 {[%clk 0:00:16.8]}
33. a4 {[%clk 0:00:09.2]} 33... Kh4 {[%clk 0:00:15.5]} 34. a5 {[%clk 0:00:08.1]}
34... Nc4 {[%clk 0:00:14.7]} 35. Bd7 {[%clk 0:00:08.2]} 35... e4 {[%clk
0:00:08.6]} 36. f3 {[%clk 0:00:03]} 36... exf3+ {[%clk 0:00:07.1]} 37. Kxf3
{[%clk 0:00:03.2]} 37... Ne5+ {[%clk 0:00:07.7]} 38. Kf4 {[%clk 0:00:01.9]}
38... Nxd7 {[%clk 0:00:08.3]} 39. b5 {[%clk 0:00:02.3]} 39... Kxh3 {[%clk
0:00:08.4]} 40. Kf5 {[%clk 0:00:02.3]} 40... Kg3 {[%clk 0:00:08.1]} 41. Ke6
{[%clk 0:00:01.7]} 41... Nc5+ {[%clk 0:00:07.2]} 42. Kd5 {[%clk 0:00:01.4]}
42... Na4 {[%clk 0:00:07.8]} 0-1